{"text_format":"1","workbook":"xlsx","n_sheets":3,"sheets":["DATOS ALUMNOS","RESULTADOS","RUBRICA"],"not_rendered":{"charts":0,"images":0,"macros":1,"external_links":0,"defined_names":0,"comments":0,"pivot_tables":0},"unopened":[],"bounds":{"document_bytes":16777216,"sheet_cells":100000,"rows_first":2000,"rows_last":500,"rows_between":2000,"halvings":0,"cell_chars":16384,"cell_head_chars":4096},"cells_cut":0,"cells_raw":0,"read":"whole","date_system":"1900"}

{"sheet":"DATOS ALUMNOS","index":0,"n_rows":25,"n_cols":11,"rows_kept":25,"cut":false,"hidden":false,"merged":[]}
["Repeticións & Apelidos, nome","Apelidos, nome","Apelidos","Nome","Módulos","Primeira Avaliación","Segunda Avaliación","Terceira Avaliación"," FINAL","otro metodo final","* método final"]
[{"$f":"COUNTIF($B$2:$B2,$B2)&B2","v":"1Estevez fernandez, Maria Jesus"},{"$f":"CONCATENATE(C2,\", \",D2)","v":"Estevez fernandez, Maria Jesus"},"Estevez fernandez","Maria Jesus","Xestión da documentación xurídica e empresarial.",3,4,4,{"$f":"ROUND(IF(MIN(F2:H2)<5,AVERAGEIF(F2:H2,\"<5\"),AVERAGE(F2:H2)),0)","v":4},{"$f":"ROUND(IF(AND(F2>=5,G2>=5,H2>=5),AVERAGE(F2:H2),IF(OR(F2<5,G2<5,H2<5),AVERAGEIF(F2:H2,\"<5\",F2:H2),\"\")),0)","v":4},{"$f":"ROUND(IF(OR(F2<5,G2<5,H2<5),AVERAGEIFS(F2:H2,F2:H2,\"<5\"),IF(AND(F2>=5,G2>=5,H2>=5),AVERAGE(F2:H2),\"\")),0)","v":4}]
[{"$f":"COUNTIF($B$2:$B3,$B3)&B3","v":"1Lopez Fernandez, Oscar"},{"$f":"CONCATENATE(C3,\", \",D3)","v":"Lopez Fernandez, Oscar"},"Lopez Fernandez","Oscar","Recursos humanos y responsabilidade social corporativa.",6,6,10,{"$f":"ROUND(IF(MIN(F3:H3)<5,AVERAGEIF(F3:H3,\"<5\"),AVERAGE(F3:H3)),0)","v":7},7,{"$f":"ROUND(IF(OR(F3<5,G3<5,H3<5),AVERAGEIFS(F3:H3,F3:H3,\"<5\"),IF(AND(F3>=5,G3>=5,H3>=5),AVERAGE(F3:H3),\"\")),0)","v":7}]
[{"$f":"COUNTIF($B$2:$B4,$B4)&B4","v":"1Rodriguez Bravo, Zacil"},"Rodriguez Bravo, Zacil","Rodriguez Bravo","Zacil","Ofimática e proceso da información.",6,10,6,{"$f":"ROUND(IF(MIN(F4:H4)<5,AVERAGEIF(F4:H4,\"<5\"),AVERAGE(F4:H4)),0)","v":7},7,7]
[{"$f":"COUNTIF($B$2:$B5,$B5)&B5","v":"1Rodriguez Bravo, Mara"},"Rodriguez Bravo, Mara","Rodriguez Bravo","Mara","Proceso integral da actividade comercial.",10,7,9,9,9,9]
[{"$f":"COUNTIF($B$2:$B6,$B6)&B6","v":"2Estevez fernandez, Maria Jesus"},"Estevez fernandez, Maria Jesus","Estevez fernandez","Maria Jesus","Fol",5,7,4,4,4,4]
[{"$f":"COUNTIF($B$2:$B7,$B7)&B7","v":"3Estevez fernandez, Maria Jesus"},"Estevez fernandez, Maria Jesus","Estevez fernandez","Maria Jesus","Recursos humanos y responsabilidade social corporativa.",6,7,3,3,3,3]
[{"$f":"COUNTIF($B$2:$B8,$B8)&B8","v":"2Lopez Fernandez, Oscar"},"Lopez Fernandez, Oscar","Lopez Fernandez","Oscar","Xestión da documentación xurídica e empresarial.",5,8,9,7,7,7]
[{"$f":"COUNTIF($B$2:$B9,$B9)&B9","v":"2Rodriguez Bravo, Zacil"},"Rodriguez Bravo, Zacil","Rodriguez Bravo","Zacil","Comunicación e atención ao cliente.",7,5,8,7,7,7]
[{"$f":"COUNTIF($B$2:$B10,$B10)&B10","v":"3Lopez Fernandez, Oscar"},"Lopez Fernandez, Oscar","Lopez Fernandez","Oscar","Fol",5,6,7,6,6,6]
[{"$f":"COUNTIF($B$2:$B11,$B11)&B11","v":"2Rodriguez Bravo, Mara"},"Rodriguez Bravo, Mara","Rodriguez Bravo","Mara","Inglés.",6,9,7,7,7,7]
[{"$f":"COUNTIF($B$2:$B12,$B12)&B12","v":"4Estevez fernandez, Maria Jesus"},"Estevez fernandez, Maria Jesus","Estevez fernandez","Maria Jesus","Ofimática e proceso da información.",5,3,7,3,3,3]
[{"$f":"COUNTIF($B$2:$B13,$B13)&B13","v":"4Lopez Fernandez, Oscar"},"Lopez Fernandez, Oscar","Lopez Fernandez","Oscar","Comunicación e atención ao cliente.",10,10,9,10,10,10]
[{"$f":"COUNTIF($B$2:$B14,$B14)&B14","v":"3Rodriguez Bravo, Zacil"},"Rodriguez Bravo, Zacil","Rodriguez Bravo","Zacil","Xestión da documentación xurídica e empresarial.",8,5,5,6,6,6]
[{"$f":"COUNTIF($B$2:$B15,$B15)&B15","v":"3Rodriguez Bravo, Mara"},"Rodriguez Bravo, Mara","Rodriguez Bravo","Mara","Ofimática e proceso da información.",8,10,7,8,8,8]
[{"$f":"COUNTIF($B$2:$B16,$B16)&B16","v":"4Rodriguez Bravo, Zacil"},"Rodriguez Bravo, Zacil","Rodriguez Bravo","Zacil","Fol",6,7,8,7,7,7]
[{"$f":"COUNTIF($B$2:$B17,$B17)&B17","v":"5Estevez fernandez, Maria Jesus"},"Estevez fernandez, Maria Jesus","Estevez fernandez","Maria Jesus","Inglés.",2,3,4,3,3,3]
[{"$f":"COUNTIF($B$2:$B18,$B18)&B18","v":"5Lopez Fernandez, Oscar"},"Lopez Fernandez, Oscar","Lopez Fernandez","Oscar","Ofimática e proceso da información.",7,5,8,7,7,7]
[{"$f":"COUNTIF($B$2:$B19,$B19)&B19","v":"5Rodriguez Bravo, Zacil"},"Rodriguez Bravo, Zacil","Rodriguez Bravo","Zacil","Recursos humanos y responsabilidade social corporativa.",5,9,10,8,8,8]
[{"$f":"COUNTIF($B$2:$B20,$B20)&B20","v":"6Estevez fernandez, Maria Jesus"},"Estevez fernandez, Maria Jesus","Estevez fernandez","Maria Jesus","Comunicación e atención ao cliente.",3,8,4,4,4,4]
[{"$f":"COUNTIF($B$2:$B21,$B21)&B21","v":"4Rodriguez Bravo, Mara"},"Rodriguez Bravo, Mara","Rodriguez Bravo","Mara","Fol",7,8,5,7,7,7]
[{"$f":"COUNTIF($B$2:$B22,$B22)&B22","v":"6Lopez Fernandez, Oscar"},"Lopez Fernandez, Oscar","Lopez Fernandez","Oscar","Inglés.",6,7,5,6,6,6]
[{"$f":"COUNTIF($B$2:$B23,$B23)&B23","v":"6Rodriguez Bravo, Zacil"},"Rodriguez Bravo, Zacil","Rodriguez Bravo","Zacil","Inglés.",5,9,5,6,6,6]
[{"$f":"COUNTIF($B$2:$B24,$B24)&B24","v":"5Rodriguez Bravo, Mara"},"Rodriguez Bravo, Mara","Rodriguez Bravo","Mara","Recursos humanos y responsabilidade social corporativa.",5,5,5,5,5,5]
[{"$f":"COUNTIF($B$2:$B25,$B25)&B25","v":"6Rodriguez Bravo, Mara"},"Rodriguez Bravo, Mara","Rodriguez Bravo","Mara","Comunicación e atención ao cliente.",9,9,10,{"$f":"ROUND(IF(MIN(F25:H25)<5,AVERAGEIF(F25:H25,\"<5\"),AVERAGE(F25:H25)),0)","v":9},9,9]

{"sheet":"RESULTADOS","index":1,"n_rows":15,"n_cols":12,"rows_kept":15,"cut":false,"hidden":false,"merged":[[0,0,2,6]]}
["NOTAS ALUMNOS 1º C.S. ADMINISTRACIÓN E FINANZAS",null,null,null,null,null,null,null,null,null,null,"Estevez fernandez, Maria Jesus"]
[null,null,null,null,null,null,null,null,null,null,null,"Lopez Fernandez, Oscar"]
[null,null,null,null,null,null,null,null,null,null,null,"Rodriguez Bravo, Zacil"]
[null,null,null,null,null,null,null,null,null,null,null,"Rodriguez Bravo, Mara"]
[null,"ALUMNO","Rodriguez Bravo, Zacil"]
[null,null,null,{"$f":"COLUMN('DATOS ALUMNOS'!F$1:I$1)","v":6},{"$f":"COLUMN('DATOS ALUMNOS'!G$1:J$1)","v":7},{"$f":"COLUMN('DATOS ALUMNOS'!H$1:K$1)","v":8},{"$f":"COLUMN('DATOS ALUMNOS'!I$1:K$1)","v":9}]
[null,null,"MODULOS","Primeira Avaliación","Segunda Avaliación","Terceira Avaliación"," FINAL"]
[null,1,{"$f":"VLOOKUP(B8&$C$5,'DATOS ALUMNOS'!$A$1:$I$25,5,FALSE)","v":"Ofimática e proceso da información."},{"$f":"VLOOKUP($B8&$C$5,'DATOS ALUMNOS'!$A$1:$I$25,D$6,FALSE)","v":6},{"$f":"VLOOKUP($B8&$C$5,'DATOS ALUMNOS'!$A$1:$I$25,E$6,FALSE)","v":10},{"$f":"VLOOKUP($B8&$C$5,'DATOS ALUMNOS'!$A$1:$I$25,F$6,FALSE)","v":6},{"$f":"VLOOKUP($B8&$C$5,'DATOS ALUMNOS'!$A$1:$I$25,G$6,FALSE)","v":7}]
[null,2,{"$f":"VLOOKUP(B9&$C$5,'DATOS ALUMNOS'!$A$1:$I$25,5,FALSE)","v":"Comunicación e atención ao cliente."},{"$f":"VLOOKUP($B9&$C$5,'DATOS ALUMNOS'!$A$1:$I$25,D$6,FALSE)","v":7},{"$f":"VLOOKUP($B9&$C$5,'DATOS ALUMNOS'!$A$1:$I$25,E$6,FALSE)","v":5},{"$f":"VLOOKUP($B9&$C$5,'DATOS ALUMNOS'!$A$1:$I$25,F$6,FALSE)","v":8},{"$f":"VLOOKUP($B9&$C$5,'DATOS ALUMNOS'!$A$1:$I$25,G$6,FALSE)","v":7}]
[null,3,{"$f":"VLOOKUP(B10&$C$5,'DATOS ALUMNOS'!$A$1:$I$25,5,FALSE)","v":"Xestión da documentación xurídica e empresarial."},{"$f":"VLOOKUP($B10&$C$5,'DATOS ALUMNOS'!$A$1:$I$25,D$6,FALSE)","v":8},{"$f":"VLOOKUP($B10&$C$5,'DATOS ALUMNOS'!$A$1:$I$25,E$6,FALSE)","v":5},{"$f":"VLOOKUP($B10&$C$5,'DATOS ALUMNOS'!$A$1:$I$25,F$6,FALSE)","v":5},{"$f":"VLOOKUP($B10&$C$5,'DATOS ALUMNOS'!$A$1:$I$25,G$6,FALSE)","v":6}]
[null,4,{"$f":"VLOOKUP(B11&$C$5,'DATOS ALUMNOS'!$A$1:$I$25,5,FALSE)","v":"Fol"},{"$f":"VLOOKUP($B11&$C$5,'DATOS ALUMNOS'!$A$1:$I$25,D$6,FALSE)","v":6},{"$f":"VLOOKUP($B11&$C$5,'DATOS ALUMNOS'!$A$1:$I$25,E$6,FALSE)","v":7},{"$f":"VLOOKUP($B11&$C$5,'DATOS ALUMNOS'!$A$1:$I$25,F$6,FALSE)","v":8},{"$f":"VLOOKUP($B11&$C$5,'DATOS ALUMNOS'!$A$1:$I$25,G$6,FALSE)","v":7}]
[null,5,{"$f":"VLOOKUP(B12&$C$5,'DATOS ALUMNOS'!$A$1:$I$25,5,FALSE)","v":"Recursos humanos y responsabilidade social corporativa."},{"$f":"VLOOKUP($B12&$C$5,'DATOS ALUMNOS'!$A$1:$I$25,D$6,FALSE)","v":5},{"$f":"VLOOKUP($B12&$C$5,'DATOS ALUMNOS'!$A$1:$I$25,E$6,FALSE)","v":9},{"$f":"VLOOKUP($B12&$C$5,'DATOS ALUMNOS'!$A$1:$I$25,F$6,FALSE)","v":10},{"$f":"VLOOKUP($B12&$C$5,'DATOS ALUMNOS'!$A$1:$I$25,G$6,FALSE)","v":8}]
[null,6,{"$f":"VLOOKUP(B13&$C$5,'DATOS ALUMNOS'!$A$1:$I$25,5,FALSE)","v":"Inglés."},{"$f":"VLOOKUP($B13&$C$5,'DATOS ALUMNOS'!$A$1:$I$25,D$6,FALSE)","v":5},{"$f":"VLOOKUP($B13&$C$5,'DATOS ALUMNOS'!$A$1:$I$25,E$6,FALSE)","v":9},{"$f":"VLOOKUP($B13&$C$5,'DATOS ALUMNOS'!$A$1:$I$25,F$6,FALSE)","v":5},{"$f":"VLOOKUP($B13&$C$5,'DATOS ALUMNOS'!$A$1:$I$25,G$6,FALSE)","v":6}]
[]
[null,null,null,null,null,"NOTA MEDIA",{"$f":"IFERROR(ROUND(IF(MIN(G8:G13)<5,\"\",AVERAGE(G8:G13)),0),\"\")","v":7}]

{"sheet":"RUBRICA","index":2,"n_rows":9,"n_cols":5,"rows_kept":9,"cut":false,"hidden":false,"merged":[[7,1,7,2]]}
["NOTA EXERCICIO",2.5,null,"TOTAL",{"$f":"SUM(E3:E9)","v":2.5}]
[null,null,null,"pondera.","cualificac."]
[null,"Exer 2 Item 1","Identifica e indica a sintaxe da/s formula/s a aplicar, de tal xeito que o ingresala manualmente na cela respectiva, calcula a NOTA FINAL, cumprindo as condicións solicitadas no enunciado.",0.2,{"$f":"D3*$B$1","v":0.5}]
[null,"Exer 2 Item 2","Identifica e indica o procedemento a seguir  para preparar os datos que permitan elixir na cela C5 os 4 alumnos (sen repeticións>valores únicos) pertencentes o curso 1º de C.S. de Administración e Finanzas . ",0.2,{"$f":"D4*$B$1","v":0.5}]
[null,"Exer 2 Item 3","Identifica e indica o procedemento a aplicar e a sintaxe da/s formula/s  BUSCARV para a cela C8, que permita obter os resultados segundo o seleccionado na cela C5.",0.2,0.5]
[null,"Exer 2 Item 4","Recoñece e escribe a sintaxe da/s formula/s a inserir para a cela D8,  así como o procedemento a aplicar que permite obter as notas de cada modulo das distintas avaliacións, así como na FINAL, cumprindo todos os requisitos solicitados no enunciado.",0.2,0.5]
[null,"Exer 2 Item 5","A descrición e a sintaxe escrita da formula a introducir en G15, consegue calcular a nota media correctamente, atendendo as indicacións requiridas do enunciado.",0.15,0.375]
[null,"A2 Achegas Persoais e Ortografía"]
[null,"Exer 2 Item 6","Fai unha indicación clara e precisa dos distintos pasos seguidos para poder chegar os resultados",0.05,0.125]